Workbook

Sheet Input
A1: (updated: 9/24/12) | D1: (enter data in green shaded cells)
C2: Dairy Feed Change Evaluator
D4: Current | E4: New | G4: Results Summary
C5: Variable | D5: Ration | E5: Ration | H5: New Ration
C6: Cow Data | G6: Measure | H6: vs. Current
C7: Number of Cows | D7: 750 | E7: 750 | G7: Per cow/day | H7: ='Net-per cow per day'!$F$32 -> 0.08530825
C8: Pounds of Milk (per cow/day) | D8: 80 | E8: 75 | G8: Herd per day | H8: ='Net-per herd per day'!F32 -> 63.9811875
C9: Butterfat (%) | D9: 0.034 | E9: 0.0365 | G9: Herd per week | H9: =H8*7 -> 447.8683125
C10: Milk Protein (%) | D10: 0.028 | E10: 0.03 | G10: Herd per month | H10: =H8*30.5 -> 1951.426219
C11: Other Solids (%) | D11: 0.057 | E11: 0.057 | G11: Herd per year | H11: =H8*365 -> 23353.13344
C12: Milk Price Data
C13: Butterfat Price ($/lb) | D13: 2.2511 | E13: =IF(D13>0,D13,"") -> 2.2511
C14: Milk Protein Price ($/lb) | D14: 3.8292 | E14: =IF(D14>0,D14,"") -> 3.8292
C15: Other Solids Price ($/lb) | D15: 0.3608 | E15: 0.3608
C16: Approximate Class III Price1 ($/cwt) | D16: =(D14*3.1)+(D15*5.9)+(D13*3.5) -> 21.87809 | E16: =(E14*3.1)+(E15*5.9)+(E13*3.5) -> 21.87809
C17: PPD2 ($/cwt) | D17: 1.48 | E17: 1.48
C18: Volume Premium ($/cwt) | D18: 0.4 | E18: 0.4
C19: Quality Premium ($/cwt) | D19: 0.1 | E19: 0.1
C20: Other Premium ($/cwt) | D20: 0 | E20: =IF(D20>0,D20,0) -> 0
C21: Variable Cost Data
C22: Milk Hauling ($/cwt) | D22: 0.45 | E22: 0.45
C23: Promotion ($/cwt) | D23: 0.15 | E23: 0.15
C24: Co-op Dues ($/cwt) | D24: 0.01 | E24: 0.01
C25: Other Deductions ($/cwt) | D25: 0.1 | E25: 0.1
C26: Utilities3 (KWh/lb milk) | D26: 0.0079 | E26: 0.0079
C27: Electric cost ($/KWh) | D27: 0.1 | E27: 0.1
C28: Ration Variables
C29: DM4 Intake (lbs./cow/day) | D29: 51 | E29: 50
C30: Ration Cost ($/lb. DM) | D30: 0.07 | E30: 0.068
C31: 1Approximate Class III price based on the given butterfat, milk protein, and other solids prices.
C32: 2PPD equals producer price differential used in federal order minimum pricing.
C33: 3Electricity used to cool milk.
C34: 4DM equals dry matter.
C35: http://www.ams.usda.gov/AMSv1.0/ams.fetchTemplateData.do?startIndex=1&template=TemplateV&page=MilkPriceAnnouncementsSummariesandProductPrices
C37: Dairy Feed Change Evaluator was programmed by Craig Thomas, Michigan State University Extension Dairy Educator
C38: Questions? Contact Craig Thomas at: | D38: thomasc@anr.msu.edu | E38: 810-404-3402 (cell) | G38: 810-648-2515 (office)

Sheet Net-per cow per day
D2: Daily Comparison (per cow)
D4: =Input!$D$4 -> Current | E4: =Input!$E$4 -> New | F4: =Input!H5 -> New Ration
C5: Item (per cow/day) | D5: Ration | E5: Ration | F5: =Input!H6 -> vs. Current
C6: Component
C7: Butterfat (lbs.) | D7: =Input!D8*Input!D9 -> 2.72 | E7: =Input!E8*Input!E9 -> 2.7375 | F7: =E7-D7 -> 0.0175
C8: Milk Protein (lbs.) | D8: =Input!D8*Input!D10 -> 2.24 | E8: =Input!E8*Input!E10 -> 2.25 | F8: =E8-D8 -> 0.01
C9: Other Solids (lbs.) | D9: =Input!D8*Input!D11 -> 4.56 | E9: =Input!E8*Input!E11 -> 4.275 | F9: -0.285
C10: Component Revenue
C11: Butterfat ($) | D11: =Input!D8*Input!D9*Input!D13 -> 6.122992 | E11: =Input!E8*Input!E9*Input!E13 -> 6.16238625 | F11: 0.03939425
C12: Milk protein ($) | D12: =Input!D8*Input!D10*Input!D14 -> 8.577408 | E12: =Input!E8*Input!E10*Input!E14 -> 8.6157 | F12: 0.038292
C13: Other solids ($) | D13: =Input!D8*Input!D11*Input!D15 -> 1.645248 | E13: =Input!E8*Input!E11*Input!E15 -> 1.54242 | F13: -0.102828
C14: Total Component Revenue | D14: =SUM(D11:D13) -> 16.345648 | E14: =SUM(E11:E13) -> 16.32050625 | F14: -0.02514175
C15: Premium Revenue
C16: PPD1 ($) | D16: =Input!D8*Input!D17*0.01 -> 1.184 | E16: =Input!E8*Input!E17*0.01 -> 1.11 | F16: -0.074
C17: Volume Premium ($) | D17: =Input!D8*Input!D18*0.01 -> 0.32 | E17: =Input!E8*Input!E18*0.01 -> 0.3 | F17: -0.02
C18: Quality Premium ($) | D18: =Input!D8*Input!D19*0.01 -> 0.08 | E18: =Input!E8*Input!E19*0.01 -> 0.075 | F18: -0.005
C19: Other Premium ($) | D19: =Input!D8*Input!D20*0.01 -> 0 | E19: =Input!E8*Input!E20*0.01 -> 0 | F19: 0
C20: Total Premium Revenue | D20: =SUM(D16:D19) -> 1.584 | E20: =SUM(E16:E19) -> 1.485 | F20: -0.099
C21: Total Revenue | D21: =D14+D20 -> 17.929648 | E21: =E14+E20 -> 17.80550625 | F21: =E21-D21 -> -0.12414175
C22: Variable Costs
C23: Milk Hauling ($) | D23: =Input!D8*Input!D22*0.01 -> 0.36 | E23: =Input!E8*Input!E22*0.01 -> 0.3375 | F23: -0.0225
C24: Promotion ($) | D24: =Input!D8*Input!D23*0.01 -> 0.12 | E24: =Input!E8*Input!E23*0.01 -> 0.1125 | F24: -0.0075
C25: Co-op Dues ($) | D25: =Input!D8*Input!D24*0.01 -> 0.008 | E25: =Input!E8*Input!E24*0.01 -> 0.0075 | F25: -0.0005
C26: Other Deductions ($) | D26: =Input!D8*Input!D25*0.01 -> 0.08 | E26: =Input!E8*Input!E25*0.01 -> 0.075 | F26: -0.005
C27: Utilities2 ($) | D27: =Input!D8*Input!D26*Input!D27 -> 0.0632 | E27: =Input!E8*Input!E26*Input!E27 -> 0.05925 | F27: -0.00395
C28: Total Variable Cost | D28: =SUM(D23:D27) -> 0.6312 | E28: =SUM(E23:E27) -> 0.59175 | F28: -0.03945
C29: Feed Cost
C30: Ration Cost | D30: =Input!D29*Input!D30 -> 3.57 | E30: =Input!E29*Input!E30 -> 3.4 | F30: -0.17
C31: Total Cost | D31: =D28+D30 -> 4.2012 | E31: =E28+E30 -> 3.99175 | F31: -0.20945
C32: Net Return | D32: =D21-D31 -> 13.728448 | E32: =E21-E31 -> 13.81375625 | F32: 0.08530825
C34: 1PPD equals producer price differential used in federal order minimum pricing.
C35: 2Utilities used to cool milk.

Sheet Net-per herd per day
D2: Daily Comparison (herd)
D4: =Input!$D$4 -> Current | E4: =Input!$E$4 -> New | F4: =Input!H5 -> New Ration
C5: Item (per cow/day) | D5: Ration | E5: Ration | F5: =Input!H6 -> vs. Current
C6: Component
C7: Butterfat (lbs.) | D7: ='Net-per cow per day'!D7*Input!$D$7 -> 2040 | E7: ='Net-per cow per day'!E7*Input!$E$7 -> 2053.125 | F7: =E7-D7 -> 13.125
C8: Milk Protein (lbs.) | D8: ='Net-per cow per day'!D8*Input!$D$7 -> 1680 | E8: ='Net-per cow per day'!E8*Input!$E$7 -> 1687.5 | F8: =E8-D8 -> 7.5
C9: Other Solids (lbs.) | D9: ='Net-per cow per day'!D9*Input!$D$7 -> 3420 | E9: ='Net-per cow per day'!E9*Input!$E$7 -> 3206.25 | F9: -213.75
C10: Component Revenue
C11: Butterfat ($) | D11: ='Net-per cow per day'!D11*Input!$D$7 -> 4592.244 | E11: ='Net-per cow per day'!E11*Input!$E$7 -> 4621.789687 | F11: 29.5456875
C12: Milk protein ($) | D12: ='Net-per cow per day'!D12*Input!$D$7 -> 6433.056 | E12: ='Net-per cow per day'!E12*Input!$E$7 -> 6461.775 | F12: 28.719
C13: Other solids ($) | D13: ='Net-per cow per day'!D13*Input!$D$7 -> 1233.936 | E13: ='Net-per cow per day'!E13*Input!$E$7 -> 1156.815 | F13: -77.121
C14: Total Component Revenue | D14: =SUM(D11:D13) -> 12259.236 | E14: =SUM(E11:E13) -> 12240.37969 | F14: -18.8563125
C15: Premium Revenue
C16: PPD1 ($) | D16: ='Net-per cow per day'!D16*Input!$D$7 -> 888 | E16: ='Net-per cow per day'!E16*Input!$E$7 -> 832.5 | F16: -55.5
C17: Volume Premium ($) | D17: ='Net-per cow per day'!D17*Input!$D$7 -> 240 | E17: ='Net-per cow per day'!E17*Input!$E$7 -> 225 | F17: -15
C18: Quality Premium ($) | D18: ='Net-per cow per day'!D18*Input!$D$7 -> 60 | E18: ='Net-per cow per day'!E18*Input!$E$7 -> 56.25 | F18: -3.75
C19: Other Premium ($) | D19: ='Net-per cow per day'!D19*Input!$D$7 -> 0 | E19: ='Net-per cow per day'!E19*Input!$E$7 -> 0 | F19: 0
C20: Total Premium Revenue | D20: =SUM(D16:D19) -> 1188 | E20: =SUM(E16:E19) -> 1113.75 | F20: -74.25
C21: Total Revenue | D21: =D14+D20 -> 13447.236 | E21: =E14+E20 -> 13354.12969 | F21: =E21-D21 -> -93.1063125
C22: Variable Costs
C23: Milk Hauling ($) | D23: ='Net-per cow per day'!D23*Input!$D$7 -> 270 | E23: ='Net-per cow per day'!E23*Input!$E$7 -> 253.125 | F23: -16.875
C24: Promotion ($) | D24: ='Net-per cow per day'!D24*Input!$D$7 -> 90 | E24: ='Net-per cow per day'!E24*Input!$E$7 -> 84.375 | F24: -5.625
C25: Co-op Dues ($) | D25: ='Net-per cow per day'!D25*Input!$D$7 -> 6 | E25: ='Net-per cow per day'!E25*Input!$E$7 -> 5.625 | F25: -0.375
C26: Other Deductions ($) | D26: ='Net-per cow per day'!D26*Input!$D$7 -> 60 | E26: ='Net-per cow per day'!E26*Input!$E$7 -> 56.25 | F26: -3.75
C27: Utilities2 ($) | D27: ='Net-per cow per day'!D27*Input!$D$7 -> 47.4 | E27: ='Net-per cow per day'!E27*Input!$E$7 -> 44.4375 | F27: -2.9625
C28: Total Variable Cost | D28: =SUM(D23:D27) -> 473.4 | E28: =SUM(E23:E27) -> 443.8125 | F28: -29.5875
C29: Feed Cost
C30: Ration Cost | D30: ='Net-per cow per day'!D30*Input!$D$7 -> 2677.5 | E30: ='Net-per cow per day'!E30*Input!$E$7 -> 2550 | F30: -127.5
C31: Total Cost | D31: =D28+D30 -> 3150.9 | E31: =E28+E30 -> 2993.8125 | F31: -157.0875
C32: Net Return | D32: =D21-D31 -> 10296.336 | E32: =E21-E31 -> 10360.31719 | F32: 63.9811875
C34: 1PPD equals producer price differential used in federal order minimum pricing.
C35: 2Utilities used to cool milk.

Sheet Net-per herd per year
D2: Annual Comparison (herd)
D4: =Input!$D$4 -> Current | E4: =Input!$E$4 -> New | F4: =Input!H5 -> New Ration
C5: Item (per cow/day) | D5: Ration | E5: Ration | F5: =Input!H6 -> vs. Current
C6: Component
C7: Butterfat (lbs.) | D7: ='Net-per herd per day'!D7*365 -> 744600 | E7: ='Net-per herd per day'!E7*365 -> 749390.625 | F7: =E7-D7 -> 4790.625
C8: Milk Protein (lbs.) | D8: ='Net-per herd per day'!D8*365 -> 613200 | E8: ='Net-per herd per day'!E8*365 -> 615937.5 | F8: =E8-D8 -> 2737.5
C9: Other Solids (lbs.) | D9: ='Net-per herd per day'!D9*365 -> 1248300 | E9: ='Net-per herd per day'!E9*365 -> 1170281.25 | F9: -78018.75
C10: Component Revenue
C11: Butterfat ($) | D11: ='Net-per herd per day'!D11*365 -> 1676169.06 | E11: ='Net-per herd per day'!E11*365 -> 1686953.236 | F11: 10784.17594
C12: Milk protein ($) | D12: ='Net-per herd per day'!D12*365 -> 2348065.44 | E12: ='Net-per herd per day'!E12*365 -> 2358547.875 | F12: 10482.435
C13: Other solids ($) | D13: ='Net-per herd per day'!D13*365 -> 450386.64 | E13: ='Net-per herd per day'!E13*365 -> 422237.475 | F13: -28149.165
C14: Total Component Revenue | D14: =SUM(D11:D13) -> 4474621.14 | E14: =SUM(E11:E13) -> 4467738.586 | F14: -6882.554063
C15: Premium Revenue
C16: PPD1 ($) | D16: ='Net-per herd per day'!D16*365 -> 324120 | E16: ='Net-per herd per day'!E16*365 -> 303862.5 | F16: -20257.5
C17: Volume Premium ($) | D17: ='Net-per herd per day'!D17*365 -> 87600 | E17: ='Net-per herd per day'!E17*365 -> 82125 | F17: -5475
C18: Quality Premium ($) | D18: ='Net-per herd per day'!D18*365 -> 21900 | E18: ='Net-per herd per day'!E18*365 -> 20531.25 | F18: -1368.75
C19: Other Premium ($) | D19: ='Net-per herd per day'!D19*365 -> 0 | E19: ='Net-per herd per day'!E19*365 -> 0 | F19: 0
C20: Total Premium Revenue | D20: =SUM(D16:D19) -> 433620 | E20: =SUM(E16:E19) -> 406518.75 | F20: -27101.25
C21: Total Revenue | D21: =D14+D20 -> 4908241.14 | E21: =E14+E20 -> 4874257.336 | F21: =E21-D21 -> -33983.80406
C22: Variable Costs
C23: Milk Hauling ($) | D23: ='Net-per herd per day'!D23*365 -> 98550 | E23: ='Net-per herd per day'!E23*365 -> 92390.625 | F23: -6159.375
C24: Promotion ($) | D24: ='Net-per herd per day'!D24*365 -> 32850 | E24: ='Net-per herd per day'!E24*365 -> 30796.875 | F24: -2053.125
C25: Co-op Dues ($) | D25: ='Net-per herd per day'!D25*365 -> 2190 | E25: ='Net-per herd per day'!E25*365 -> 2053.125 | F25: -136.875
C26: Other Deductions ($) | D26: ='Net-per herd per day'!D26*365 -> 21900 | E26: ='Net-per herd per day'!E26*365 -> 20531.25 | F26: -1368.75
C27: Utilities2 ($) | D27: ='Net-per herd per day'!D27*365 -> 17301 | E27: ='Net-per herd per day'!E27*365 -> 16219.6875 | F27: -1081.3125
C28: Total Variable Cost | D28: =SUM(D23:D27) -> 172791 | E28: =SUM(E23:E27) -> 161991.5625 | F28: -10799.4375
C29: Feed Cost
C30: Ration Cost | D30: ='Net-per herd per day'!D30*365 -> 977287.5 | E30: ='Net-per herd per day'!E30*365 -> 930750 | F30: -46537.5
C31: Total Cost | D31: =D28+D30 -> 1150078.5 | E31: =E28+E30 -> 1092741.562 | F31: -57336.9375
C32: Net Return | D32: =D21-D31 -> 3758162.64 | E32: =E21-E31 -> 3781515.773 | F32: 23353.13344
C34: 1PPD equals producer price differential used in federal order minimum pricing.
C35: 2Utilities used to cool milk.
